Cogmind - Beta 9.4 @@@ ROGUE MODE // 2020.01.27 @ 17:11:09 Player: Alix Result: Self-destructed Performance ------------- Evolutions (1) 500 Regions Visited (2) 400 Robots Destroyed (10) 50 Value Destroyed (223) 223 Prototype IDs (1) 20 Alien Tech Used (0) 0 Bonus (0) 0 TOTAL SCORE: 1193 Bonus ------- None Cogmind --------- Core Integrity 137/400 Matter 242/300 Energy 100/100 System Corruption 0% Temperature Cool (0) Movement Core (150) Ox2 Location -9/Materials Parts ------- > --- POWER (1) -------- (None) > --- PROPULSION (4) --- (None) > --- UTILITY (2) ------ Small Storage Unit Small Storage Unit > --- WEAPON (2) ------- (None) > --- INVENTORY (8) ---- Aluminum Leg Aluminum Leg Small Storage Unit Sensor Array Peak State ------------ > --- POWER ------------ Ion Engine > --- PROPULSION ------- Aluminum Leg Aluminum Leg Aluminum Leg Aluminum Leg > --- UTILITY ---------- Small Storage Unit Small Storage Unit > --- WEAPON ----------- Light Assault Rifle Improved Assault Rifle > --- INVENTORY -------- Aluminum Leg Aluminum Leg Small Storage Unit Sensor Array Small Laser [Rating: 11] Favorites ----------- Power Light Ion Engine Engine Light Ion Engine Propulsion Aluminum Leg Leg Aluminum Leg Utility Small Storage Unit Storage Small Storage Unit Weapon Assault Rifle Energy Gun Small Laser Ballistic Gun Assault Rifle Build | -11 -10 -9 ------- Run | Scr Mat Mat Slots Evolved 2 | . . 2 Power . | . . . Propulsion 2 | . . 2 Utility . | . . . Weapon . | . . . Parts Attached 17 | 6 6 5 Power 3 | 1 1 1 Engine 3 | 1 1 1 Core . | . . . Reactor . | . . . Propulsion 7 | 2 3 2 Treads . | . . . Leg 7 | 2 3 2 Wheel . | . . . Hover . | . . . Flight . | . . . Utility 2 | 1 1 . Device . | . . . Storage 2 | 1 1 . Processor . | . . . Hackware . | . . . Protection . | . . . Artifact . | . . . Weapon 5 | 2 1 2 Energy Gun 1 | . . 1 Energy Cannon . | . . . Ballistic Gun 4 | 2 1 1 Ballistic Cannon . | . . . Launcher . | . . . Special Weapon . | . . . Impact Weapon . | . . . Slashing Weapon . | . . . Piercing Weapon . | . . . Special Melee Weapon . | . . . Unidentified Prototypes 1 | . . 1 Parts Lost 11 | . 1 10 Power 2 | . . 2 Propulsion 4 | . . 4 Utility . | . . . Weapon 5 | . 1 4 Highest Loss Streak 5 | . 1 5 Average Slot Usage (%) 92 | . 97 85 Engine 12 | . 14 10 Leg 31 | . 28 35 Storage 25 | . 27 22 Ballistic Gun 22 | . 26 15 Naked Turns . | . . . Heaviest Build 17 | 12 16 17 Greatest Support 40 | 20 20 40 Greatest Overweight (x) 3 | . . 3 Average Overweight (x) . | . . . Largest Inventory Capacity 8 | 6 8 8 Average Capacity 7 | 5 7 8 Most Carried 8 | 2 8 7 Average Carried 4 | 1 5 5 Final Capacity 8 | 6 8 8 Final Carried 8 | 2 8 4 Class Distribution -------------------- 61% | Mutant 38% | Scavenger-Mutant Dominant Class ---------------- Mutant | -10/Materials Scavenger-Mutant | -9/Materials Resources | -11 -10 -9 ----------- Run | Scr Mat Mat Matter Collected 389 | 129 207 53 Remotely . | . . . Salvage Created 309 | . 221 88 Parts 19 | . 16 3 Haulers Intercepted 1 | . 1 . Recyclers Shooed . | . . . Parts Field Recycled . | . . . Retrieved Matter . | . . . Parts Self-Destructed . | . . . Prevented . | . . . Kills | -11 -10 -9 ------- Run | Scr Mat Mat Combat Hostiles Destroyed 9 | . 7 2 Guns 9 | . 7 2 Classes Destroyed 4 | . 3 1 Hauler 1 | . 1 . Swarmer 5 | . 5 . Grunt 3 | . 2 1 Brawler 1 | . . 1 Best Kill Streak 3 | . 3 1 Combat Bots Only 3 | . 3 1 Max Kills in Single Turn 1 | . 1 1 Gunslinging . | . . . Exploded . | . . . Melee . | . . . Uniques/NPCs Destroyed . | . . . Combat | -11 -10 -9 -------- Run | Scr Mat Mat Damage Taken 1610 | . 377 1233 Core 332 | . 69 263 Absorbed by Shields . | . . . Core Remaining (%) 86 | 100 72 . Volleys Fired 53 | . 36 17 Largest 2 | . 2 2 Hottest 40 | . 40 40 Shots Fired 90 | . 63 27 Gun 90 | . 63 27 Cannon . | . . . Launcher . | . . . Special . | . . . Kinetic 86 | . 63 23 Thermal 4 | . . 4 Explosive . | . . . Electromagnetic . | . . . Robot Hit Streak 7 | . 7 3 Robot Miss Streak 5 | . 5 3 Penetration Max . | . . . Secondary Targets 2 | . 2 . Max Gunslinging Chain 1 | . 1 . Shots Hit Robots 43 | . 31 12 Core Hits 21 | . 15 6 Critical Hits . | . . . Critical Kills . | . . . Critical Parts Destroyed . | . . . Melee Attacks . | . . . Impact . | . . . Slashing . | . . . Piercing . | . . . Sneak Attacks . | . . . Combat Hostiles . | . . . Follow-up Attacks . | . . . Damage Inflicted 707 | . 541 166 Guns 522 | . 380 142 Cannons . | . . . Explosions 158 | . 158 . Melee . | . . . Ramming 27 | . 3 24 Kinetic 481 | . 380 101 Thermal 41 | . . 41 Explosive 158 | . 158 . Electromagnetic . | . . . Impact . | . . . Slashing . | . . . Piercing . | . . . Highest Corruption . | . . . Average Corruption . | . . . Corruption Purged . | . . . Overload Shots . | . . . Overflow Damage 93 | . 93 . Projectiles . | . . . Explosions 93 | . 93 . Melee . | . . . Knockbacks . | . . . Impact . | . . . Kinetic . | . . . Secondary . | . . . Self-Inflicted Damage 46 | . 39 7 Shots 1 | . 1 . Rammed 6 | . . 6 Targets Rammed 12 | . 1 11 Kicked 6 | . 1 5 Crushed . | . . . Highest Temperature 24 | . 6 24 Average Temperature 9 | . 6 10 Received Heat Transfer 294 | . 78 216 Siege Activations . | . . . Robots Corrupted . | . . . Combat Hostiles . | . . . Parts Fried . | . . . Impact Corruptions . | . . . Robots Melted . | . . . Combat Hostiles . | . . . Parts Melted . | . . . Heat Transferred 100 | . . 100 Parts Sabotaged . | . . . Parts Stolen . | . . . Parts Stripped . | . . . Power Chain Reactions . | . . . Missiles Intercepted . | . . . Alert | -11 -10 -9 ------- Run | Scr Mat Mat Peak Influence 217 | . 217 141 Average Influence 112 | . 149 100 Maximum Alert Level 1 | . 1 . Low Security (%) 81 | 100 64 100 Level 1 18 | . 35 . Level 2 . | . . . Level 3 . | . . . Level 4 . | . . . Level 5 . | . . . High Security . | . . . Max Security . | . . . Squads Dispatched 2 | . 1 1 Investigation 1 | . . 1 Extermination . | . . . Reinforcement 1 | . 1 . Assault . | . . . Garrison . | . . . Intercept . | . . . Construction Impeded . | . . . Haulers Reinforced . | . . . Stealth | -11 -10 -9 --------- Run | Scr Mat Mat Distress Signals 3 | . 2 1 Communications Jammed . | . . . Distress Signals . | . . . Times Spotted 31 | . 16 15 Peak Tracking Total 8 | . 6 8 Tactical Retreats 3 | . 2 1 Traps | -11 -10 -9 ------- Run | Scr Mat Mat Traps Triggered 1 | . . 1 Indirectly . | . . . Trap Hack Attempts . | . . . Triggered . | . . . Disarmed . | . . . Reprogrammed . | . . . Reused . | . . . Traps Extracted . | . . . Installed . | . . . Triggered . | . . . Machines | -11 -10 -9 ---------- Run | Scr Mat Mat Machines Disabled 2 | . 2 . Max in Single Turn 2 | . 2 . Machines Sabotaged . | . . . Garrisons Compromised . | . . . Overloaded Fab Kills . | . . . Fab Network Shutdowns . | . . . Hacking | -11 -10 -9 --------- Run | Scr Mat Mat Machines Accessed . | . . . Terminals . | . . . Fabricators . | . . . Repair Stations . | . . . Recycling Units . | . . . Scanalyzers . | . . . Garrison Access . | . . . Total Hacks . | . . . Successful . | . . . Failed . | . . . Catastrophic . | . . . Database Lockouts . | . . . Manual . | . . . Terminals . | . . . Fabricators . | . . . Repair Stations . | . . . Recycling Units . | . . . Scanalyzers . | . . . Garrison Access . | . . . Terminal Hacks . | . . . Fabricator Hacks . | . . . Repair Station Hacks . | . . . Recycling Unit Hacks . | . . . Scanalyzer . | . . . Garrison Access Hacks . | . . . Unauthorized Hacks . | . . . Terminals . | . . . Fabricators . | . . . Repair Stations . | . . . Recycling Units . | . . . Scanalyzers . | . . . Garrison Access . | . . . Data Cores Recovered . | . . . Used . | . . . Hacking Detections . | . . . Full Trace Events . | . . . Feedback Events . | . . . Feedback Blocked . | . . . Robot Schematics Acquired . | . . . Robots Built . | . . . Matter . | . . . Time . | . . . Total Robot Build Rating . | . . . Part Schematics Acquired . | . . . Parts Built . | . . . Matter . | . . . Time . | . . . Total Part Build Rating . | . . . Parts Repaired . | . . . Time . | . . . Parts Recycled . | . . . Recycled Matter . | . . . Retrieved Matter . | . . . Retrieved Components . | . . . Parts Scanalyzed . | . . . Part Schematics Acquired . | . . . Parts Damaged . | . . . Bothacking | -11 -10 -9 ------------ Run | Scr Mat Mat Used RIF Installer . | . . . Robots Hacked . | . . . Non-combat . | . . . Combat . | . . . Robot Hacks Applied . | . . . Relay Couplers Released . | . . . Robots Rewired . | . . . Allies Hacked . | . . . Hacks Repelled . | . . . Allies | -11 -10 -9 -------- Run | Scr Mat Mat Total Allies . | . . . Largest Group . | . . . Highest-Rated Group . | . . . Highest-Rated Ally . | . . . Total Orders . | . . . Ally Attacks . | . . . Total Damage . | . . . Kills . | . . . Allies Corrupted . | . . . Allies Melted . | . . . Intel | -11 -10 -9 ------- Run | Scr Mat Mat Robot Analysis Total . | . . . Derelict Logs Recovered . | . . . Drone Launches . | . . . Drone Recoveries . | . . . Exploration | -11 -10 -9 ------------- Run | Scr Mat Mat Turns Passed 556 | 69 283 204 Spaces Moved 304 | 52 143 109 Core 7 | 5 . 2 Treads . | . . . Legs 297 | 47 143 107 Wheels . | . . . Hover . | . . . Flight . | . . . Fastest Speed 50 | 50 120 120 Average Speed 119 | 113 120 121 Slowest Speed 200 | 120 120 200 Overloaded Moves . | . . . Propulsion Burnouts . | . . . Robots Hopped . | . . . Cave-ins Triggered . | . . . Exploration Rate (%) 14 | 4 25 13 Regions Visited 2 Branch Regions . Pre-discovered Areas . | . . . Known Exits Taken . | . . . Unknown Exits Taken 2 | 1 1 . Scrap Searched . | . . . Spaces Dug . | . . . Terrain Destroyed 9 | . 9 . Melee . | . . . Projectile . | . . . AOE 9 | . 9 . Actions | -11 -10 -9 --------- Run | Scr Mat Mat Total 405 | 59 194 152 Wait 13 | . 3 10 Move 302 | 51 142 109 Hop . | . . . Pick Up 6 | 2 4 . Fast Attach 9 | 6 2 1 Attach 4 | . . 4 Detach . | . . . Swap 4 | . 4 . Drop 2 | . 2 . Fire 53 | . 36 17 Melee . | . . . Ram . | . . . Kick 12 | . 1 11 Crush . | . . . Escape Stasis . | . . . Rewire . | . . . Trap . | . . . Miscellaneous . | . . . Route ------- -11/Scrapyard -10/Materials -9/Materials History --------- Turn | Location | Event 3 | -11/Scrapyard | Discovered new exit (range 15) 70 | -11/Scrapyard | Entered Materials 226 | -10/Materials | Discovered new exit (range 15) 353 | -10/Materials | Entered another Materials area 353 | -9/Materials | Evolved 2 slots: Propulsion x2 509 | -9/Materials | Lost 5 parts (1p1n3w) 550 | -9/Materials | Core integrity fell below 50% 557 | -9/Materials | Self-destructed Last Messages --------------- Malfunction: Sml. Storage Unit damaged (-99). S-10 Pest destroyed. Lgt. Assault Rifle destroyed. Aluminum Leg destroyed. Sml. Laser destroyed. K-01 Serf collects debris. Aluminum Leg destroyed. K-01 Serf cleans the Electrolysis Chamber. Kicked K-01 Serf out of the way. Kicked S-10 Pest out of the way. Slammed into S-10 Pest. Kicked S-10 Pest out of the way. Slammed into S-10 Pest. Aluminum Leg destroyed. Slammed into S-10 Pest. Kicked S-10 Pest out of the way. Ion Engine destroyed. Slammed into G-34 Mercenary. Aluminum Leg destroyed. Faulty Imp. Assault Rifle destroyed. Map ----- +----------------------------------------------------+ | ?????????????????????????????????????????? | | ?????????????????????????????????????????? | | ?????????????????????????????????????????? | | ?????????????????????????????????????????? | | ?????????????????????????????????????????? | | ?????????????????????????????????????????? | | ##???????????????????????????????????????? | | #???????????????????????????????????????? | | #???????????????????????????????????????? | | #???????????????????????????????????????? | | #???????????????????????????????????????? | | #????????????????????????#??????????????? | | #??????????????????? ??? ???????????????? | | #??????????????????? ???????????????? | | #??????????????????? ???????????????? | | ##??????????????????? ???????????????? | | ???????????????####### #???????????????? | | ###"# #??????? !# #???????????????? | | "%" #???????"" # +???????????????? | | ###"# ##????# """ + ????????????????? | | ????????????# """ # ????????????????? | | ????????????# ## #????????????????? | | ????????##### " " ## #????????????????? | | ???????? + "R" ##Y##??#????????????? | | ????????????# """ # ## #????????????? | | ????????????# + Ts@g #????????????? | | #######?????##########s ## #????????????? | | !!//==#???????????#####g##???????????????? | | !!//==#???????????# #???????????????? | | #???????????# #???????????????? | | #???????????# """ +???????????????? | | ############# """ # ??????????????? | | u/ """ ###?????????????? | | ##/########## #???????????????? | | ### # #????########???????????????? | | # # """ #???????????????????????????? | | " # # """ #???????????????????????????? | | # # """ #???????????????????????????? | | ! # # #???????????????????????????? | | / # #???????????????????????????? | | # ########???????????????????????????? | | # #??????????????????????????????????? | | # #??????????????????????????????????? | | + #??????????????????????????????????? | | ##### #??????????????????????????????????? | | ????? #??????????????????????????????????? | | ????? #??????????????????????????????????? | | ????? #??????????????????????????????????? | | ????? #??????????????????????????????????? | | ????? #??????????????????????????????????? | +----------------------------------------------------+ Best States ------------- Heat Dissipation 28 Energy Generation 10 Energy Capacity 250 Matter Stores 242 Matter Capacity 300 Sight Range 16 Terrain Scan Density 10 Evasion (%) 40 Item Schematics ----------------- None Robot Schematics ------------------ None Fabricated ------------ Nothing Alien Tech Used ----------------- None Achievements -------------- None Challenges ------------ None Game ------ Seed RelayLargeRailgun Manual? 0 Play Time 00:12:35 Cumulative 4.4 hours Start 2020.01.27 @ 17:01:49 End 2020.01.27 @ 17:11:09 Sessions 1 Manual Loads 0 Difficulty Rogue Special Mode None Game No. 5 Rogue 2 Adventurer 3 Explorer 0 Win Type - Total 0 Types 0/0/0/0/0/0/0 Lore% 6 Gallery% 7 Achievement% 8 Wizard Run 0 Options --------- ASCII 0 Keyboard 0 Movement Mouse Keybinds 0 Fullscreen 2 Font 32/Terminus Map View 76x50 Tactical HUD 0 Map Filters NONE Filters NONE Steam 1 RUN: b3d8d4cb-67ab-4871-b729-e16628876be1